[Event "Betsys MČR v online bleskovém šachu 2021"]
[Site "Chess.com"]
[Date "2021.04.17"]
[Round "6"]
[White "TTCZ"]
[Black "clarissamcclellan"]
[Result "0-1"]
[WhiteElo "1470"]
[BlackElo "1823"]
[TimeControl "180+1"]
[EndTime "9:53:38 PDT"]
[Termination "Uživatel clarissamcclellan zvítězil po vzdání soupeře"]

1. e4 {[%clk 0:03:00.9]} 1... e6 {[%clk 0:02:59.7]} 2. d4 {[%clk 0:02:59.8]}
2... d5 {[%clk 0:02:59.6]} 3. exd5 {[%clk 0:02:59.2]} 3... exd5 {[%clk
0:02:59.1]} 4. Nc3 {[%clk 0:02:59.5]} 4... Nf6 {[%clk 0:02:58.2]} 5. Nf3 {[%clk
0:02:58.8]} 5... c5 {[%clk 0:02:55.9]} 6. dxc5 {[%clk 0:02:57.7]} 6... Bxc5
{[%clk 0:02:55.2]} 7. Be2 {[%clk 0:02:58.2]} 7... O-O {[%clk 0:02:54.7]} 8. O-O
{[%clk 0:02:58.1]} 8... h6 {[%clk 0:02:54]} 9. a3 {[%clk 0:02:56.1]} 9... Nc6
{[%clk 0:02:53]} 10. h3 {[%clk 0:02:55.5]} 10... Bf5 {[%clk 0:02:50.7]} 11. Bf4
{[%clk 0:02:54.4]} 11... Qd7 {[%clk 0:02:44.3]} 12. Bd3 {[%clk 0:02:37.9]} 12...
Rad8 {[%clk 0:02:41.3]} 13. Bxf5 {[%clk 0:02:35.7]} 13... Qxf5 {[%clk
0:02:40.9]} 14. Bg3 {[%clk 0:02:34.1]} 14... Ne4 {[%clk 0:02:34.9]} 15. Nxe4
{[%clk 0:02:28.4]} 15... dxe4 {[%clk 0:02:34.3]} 16. Nh4 {[%clk 0:02:27.6]}
16... Qe6 {[%clk 0:02:25.6]} 17. Qe2 {[%clk 0:01:22.8]} 17... g5 {[%clk
0:02:21.2]} 18. Qg4 {[%clk 0:01:16.2]} 18... Qxg4 {[%clk 0:02:20.4]} 19. hxg4
{[%clk 0:01:17.1]} 19... gxh4 {[%clk 0:02:20.5]} 20. Bxh4 {[%clk 0:01:17]} 20...
Rd2 {[%clk 0:02:20.2]} 0-1

[Event "Betsys MČR v online bleskovém šachu 2021"]
[Site "Chess.com"]
[Date "2021.04.17"]
[Round "6"]
[White "koky_3"]
[Black "jsebesta"]
[Result "1-0"]
[WhiteElo "2057"]
[BlackElo "1657"]
[TimeControl "180+1"]
[EndTime "9:53:47 PDT"]
[Termination "Uživatel koky_3 zvítězil po vzdání soupeře"]

1. e4 {[%clk 0:03:00.9]} 1... Nc6 {[%clk 0:02:56.4]} 2. Nf3 {[%clk 0:02:58.1]}
2... b6 {[%clk 0:02:55.4]} 3. d4 {[%clk 0:02:57.4]} 3... d5 {[%clk 0:02:42.9]}
4. exd5 {[%clk 0:02:43.6]} 4... Qxd5 {[%clk 0:02:36.9]} 5. c4 {[%clk 0:02:28.5]}
5... Qe4+ {[%clk 0:02:35.7]} 6. Be3 {[%clk 0:02:25.6]} 6... Nb4 {[%clk
0:02:27.7]} 7. Nc3 {[%clk 0:02:08.3]} 7... Qc6 {[%clk 0:02:12.7]} 8. a3 {[%clk
0:01:55.6]} 8... Na6 {[%clk 0:02:08.8]} 9. Ne5 {[%clk 0:01:47.8]} 9... Qe6
{[%clk 0:01:50.1]} 10. c5 {[%clk 0:01:41]} 10... Bd7 {[%clk 0:01:44.4]} 11. Bxa6
{[%clk 0:01:33.4]} 11... bxc5 {[%clk 0:01:43.1]} 12. Bc4 {[%clk 0:01:31.8]}
12... Qg6 {[%clk 0:01:37.2]} 1-0

[Event "Betsys MČR v online bleskovém šachu 2021"]
[Site "Chess.com"]
[Date "2021.04.17"]
[Round "6"]
[White "machajda"]
[Black "5265"]
[Result "1-0"]
[WhiteElo "2032"]
[BlackElo "1625"]
[TimeControl "180+1"]
[EndTime "9:53:47 PDT"]
[Termination "Uživatel machajda zvítězil po vzdání soupeře"]

1. e4 {[%clk 0:03:00.9]} 1... e5 {[%clk 0:02:59.8]} 2. Nf3 {[%clk 0:03:00]} 2...
Nc6 {[%clk 0:02:59.2]} 3. Bc4 {[%clk 0:03:00.4]} 3... Nf6 {[%clk 0:02:58.4]} 4.
d3 {[%clk 0:02:59.9]} 4... Bc5 {[%clk 0:02:58]} 5. c3 {[%clk 0:02:59.9]} 5... h6
{[%clk 0:02:56.4]} 6. Nbd2 {[%clk 0:02:59.7]} 6... d6 {[%clk 0:02:56.1]} 7. a4
{[%clk 0:02:59.5]} 7... Be6 {[%clk 0:02:55.7]} 8. Bxe6 {[%clk 0:02:57.7]} 8...
fxe6 {[%clk 0:02:55.7]} 9. b4 {[%clk 0:02:57.8]} 9... Nxb4 {[%clk 0:02:50.1]}
10. cxb4 {[%clk 0:02:58.7]} 10... Bxb4 {[%clk 0:02:50.5]} 11. Qb3 {[%clk
0:02:57.5]} 11... Bxd2+ {[%clk 0:02:49.3]} 12. Bxd2 {[%clk 0:02:56.7]} 12... b6
{[%clk 0:02:49.3]} 13. Be3 {[%clk 0:02:53.2]} 13... O-O {[%clk 0:02:48.6]} 14.
Qxe6+ {[%clk 0:02:51.1]} 14... Kh8 {[%clk 0:02:48.6]} 15. Qb3 {[%clk 0:02:48.8]}
15... c5 {[%clk 0:02:47]} 16. h3 {[%clk 0:02:47]} 16... Qe7 {[%clk 0:02:43.8]}
17. O-O {[%clk 0:02:45.4]} 17... Nh5 {[%clk 0:02:40.5]} 18. a5 {[%clk 0:02:42]}
18... bxa5 {[%clk 0:02:37.9]} 19. Rxa5 {[%clk 0:02:40.7]} 19... Rab8 {[%clk
0:02:34.9]} 20. Qa2 {[%clk 0:02:40.1]} 20... Rb7 {[%clk 0:02:35]} 21. Ra1 {[%clk
0:02:38.5]} 21... Rf7 {[%clk 0:02:32.2]} 22. Qd5 {[%clk 0:02:31.1]} 22... Nf6
{[%clk 0:02:28.5]} 23. Qa2 {[%clk 0:02:29.8]} 23... Qc7 {[%clk 0:02:26.6]} 24.
Nd2 {[%clk 0:02:28.4]} 24... Qb6 {[%clk 0:02:08.4]} 25. Nc4 {[%clk 0:02:26.9]}
25... Qc7 {[%clk 0:02:05.2]} 26. Ra6 {[%clk 0:02:25.7]} 26... d5 {[%clk
0:01:57.9]} 27. exd5 {[%clk 0:02:23.1]} 27... Nxd5 {[%clk 0:01:55.8]} 28. Nd6
{[%clk 0:02:17.3]} 28... Nb4 {[%clk 0:01:53.9]} 29. Qxf7 {[%clk 0:02:12.1]}
29... Nxa6 {[%clk 0:01:44.8]} 30. Qxc7 {[%clk 0:02:09.1]} 30... Rxc7 {[%clk
0:01:43.9]} 31. Rxa6 {[%clk 0:02:07.7]} 1-0

[Event "Betsys MČR v online bleskovém šachu 2021"]
[Site "Chess.com"]
[Date "2021.04.17"]
[Round "6"]
[White "p_kana"]
[Black "TomSedmihradsky"]
[Result "1-0"]
[WhiteElo "1792"]
[BlackElo "1468"]
[TimeControl "180+1"]
[EndTime "9:53:56 PDT"]
[Termination "Uživatel p_kana zvítězil po vzdání soupeře"]

1. e4 {[%clk 0:02:52.5]} 1... e5 {[%clk 0:02:59.5]} 2. Nf3 {[%clk 0:02:52.3]}
2... Nc6 {[%clk 0:02:59.3]} 3. d4 {[%clk 0:02:52.4]} 3... exd4 {[%clk
0:02:59.1]} 4. c3 {[%clk 0:02:52.6]} 4... Nf6 {[%clk 0:02:44.3]} 5. e5 {[%clk
0:02:51.7]} 5... Nd5 {[%clk 0:02:41.9]} 6. cxd4 {[%clk 0:02:52.1]} 6... d6
{[%clk 0:02:36.5]} 7. Bc4 {[%clk 0:02:46.7]} 7... Nb6 {[%clk 0:02:31.1]} 8. Bb5
{[%clk 0:02:46.5]} 8... Bg4 {[%clk 0:02:29]} 9. O-O {[%clk 0:02:40.8]} 9... dxe5
{[%clk 0:02:19.9]} 10. Re1 {[%clk 0:02:32.2]} 10... f6 {[%clk 0:01:53.8]} 11. h3
{[%clk 0:02:30.6]} 11... Bxf3 {[%clk 0:01:52.1]} 12. Qxf3 {[%clk 0:02:31.5]}
12... Qxd4 {[%clk 0:01:46]} 13. Bxc6+ {[%clk 0:02:28.3]} 13... Kd8 {[%clk
0:01:34.1]} 14. Rd1 {[%clk 0:02:21]} 14... Qxd1+ {[%clk 0:01:32.1]} 15. Qxd1+
{[%clk 0:02:17.7]} 15... Ke7 {[%clk 0:01:31.7]} 16. Bxb7 {[%clk 0:02:04.2]}
16... Rd8 {[%clk 0:01:30.3]} 17. Qb3 {[%clk 0:01:58.1]} 17... f5 {[%clk
0:01:25.7]} 18. Bg5+ {[%clk 0:01:53.8]} 1-0

[Event "Betsys MČR v online bleskovém šachu 2021"]
[Site "Chess.com"]
[Date "2021.04.17"]
[Round "6"]
[White "marecek1754"]
[Black "ReceptiveYoyo"]
[Result "1-0"]
[WhiteElo "2170"]
[BlackElo "1339"]
[TimeControl "180+1"]
[EndTime "9:54:06 PDT"]
[Termination "Uživatel marecek1754 zvítězil po vzdání soupeře"]

1. e4 {[%clk 0:03:00.9]} 1... c5 {[%clk 0:03:00.4]} 2. Nc3 {[%clk 0:03:00.5]}
2... d6 {[%clk 0:03:00.7]} 3. g3 {[%clk 0:03:01.4]} 3... g6 {[%clk 0:02:59.7]}
4. Bg2 {[%clk 0:03:02.3]} 4... Bg7 {[%clk 0:02:59.6]} 5. d3 {[%clk 0:03:03.2]}
5... Nf6 {[%clk 0:02:59.7]} 6. f4 {[%clk 0:03:03.4]} 6... O-O {[%clk 0:02:32.5]}
7. Nf3 {[%clk 0:03:00.2]} 7... Nc6 {[%clk 0:02:29.4]} 8. O-O {[%clk 0:02:59.4]}
8... Bg4 {[%clk 0:02:29]} 9. h3 {[%clk 0:02:59]} 9... Bxf3 {[%clk 0:02:25.9]}
10. Qxf3 {[%clk 0:02:59.9]} 10... Nd4 {[%clk 0:02:22]} 11. Qf2 {[%clk
0:02:59.8]} 11... e5 {[%clk 0:02:14.1]} 12. g4 {[%clk 0:02:57.3]} 12... exf4
{[%clk 0:02:11.9]} 13. Bxf4 {[%clk 0:02:58.2]} 13... Qe7 {[%clk 0:02:00]} 14.
Bg5 {[%clk 0:02:58.1]} 14... Qe5 {[%clk 0:01:57.5]} 15. Bxf6 {[%clk 0:02:57.3]}
15... Bxf6 {[%clk 0:01:57]} 16. Qxf6 {[%clk 0:02:57.4]} 16... Nxc2 {[%clk
0:01:54.9]} 17. Qxe5 {[%clk 0:02:54.4]} 17... dxe5 {[%clk 0:01:54.2]} 18. Rac1
{[%clk 0:02:51.7]} 18... Nd4 {[%clk 0:01:53.4]} 19. Rf2 {[%clk 0:02:45]} 19...
Rad8 {[%clk 0:01:45.9]} 20. Nd5 {[%clk 0:02:45]} 20... b6 {[%clk 0:01:43]} 21.
g5 {[%clk 0:02:45.4]} 21... Ne6 {[%clk 0:01:37.9]} 22. h4 {[%clk 0:02:45.5]}
22... Kg7 {[%clk 0:01:33.6]} 23. Bh3 {[%clk 0:02:40]} 23... Rd6 {[%clk
0:01:19.9]} 24. Bxe6 {[%clk 0:02:36.5]} 24... Rxe6 {[%clk 0:01:19.5]} 25. Rcf1
{[%clk 0:02:35]} 25... b5 {[%clk 0:01:14.4]} 26. Rf6 {[%clk 0:02:34.3]} 26...
Rxf6 {[%clk 0:01:11.6]} 27. Rxf6 {[%clk 0:02:28.7]} 27... c4 {[%clk 0:01:08.2]}
28. dxc4 {[%clk 0:02:28.2]} 28... bxc4 {[%clk 0:01:09.1]} 29. Rc6 {[%clk
0:02:24.6]} 1-0

[Event "Betsys MČR v online bleskovém šachu 2021"]
[Site "Chess.com"]
[Date "2021.04.17"]
[Round "6"]
[White "LightningAttack_2000"]
[Black "FBingoPlayer"]
[Result "0-1"]
[WhiteElo "1898"]
[BlackElo "2194"]
[TimeControl "180+1"]
[EndTime "9:54:18 PDT"]
[Termination "Uživatel FBingoPlayer zvítězil po vzdání soupeře"]

1. e4 {[%clk 0:03:00.9]} 1... e6 {[%clk 0:03:00.1]} 2. d4 {[%clk 0:03:00.4]}
2... d5 {[%clk 0:03:00.5]} 3. Nd2 {[%clk 0:03:00.7]} 3... Nf6 {[%clk 0:03:00]}
4. e5 {[%clk 0:03:00.4]} 4... Nfd7 {[%clk 0:03:00.6]} 5. Bd3 {[%clk 0:03:00.6]}
5... c5 {[%clk 0:02:59.9]} 6. c3 {[%clk 0:03:00.7]} 6... Nc6 {[%clk 0:02:59.8]}
7. Ne2 {[%clk 0:03:00.9]} 7... Be7 {[%clk 0:02:59.5]} 8. Nf3 {[%clk 0:02:59.5]}
8... h6 {[%clk 0:02:59.3]} 9. O-O {[%clk 0:02:58.9]} 9... a6 {[%clk 0:02:59.6]}
10. a4 {[%clk 0:02:38.3]} 10... b6 {[%clk 0:02:56.1]} 11. Bd2 {[%clk 0:02:33.4]}
11... Bb7 {[%clk 0:02:55.9]} 12. Rc1 {[%clk 0:02:31.1]} 12... g5 {[%clk
0:02:48.6]} 13. Ne1 {[%clk 0:02:26.3]} 13... Qc7 {[%clk 0:02:40.2]} 14. b4
{[%clk 0:02:17.4]} 14... c4 {[%clk 0:02:25.1]} 15. Bc2 {[%clk 0:02:12.4]} 15...
O-O-O {[%clk 0:02:24.9]} 16. f4 {[%clk 0:02:06.3]} 16... f6 {[%clk 0:02:19.7]}
17. fxg5 {[%clk 0:01:57.5]} 17... fxe5 {[%clk 0:02:14.8]} 18. Rf7 {[%clk
0:01:47.3]} 18... Bxg5 {[%clk 0:02:11.6]} 19. Bxg5 {[%clk 0:01:45]} 19... hxg5
{[%clk 0:02:12.5]} 20. dxe5 {[%clk 0:01:39.5]} 20... Ncxe5 {[%clk 0:02:07.1]}
21. Rg7 {[%clk 0:01:29.7]} 21... Ng4 {[%clk 0:01:58.8]} 22. Nf4 {[%clk
0:01:15.1]} 22... Qxf4 {[%clk 0:01:53.1]} 23. g3 {[%clk 0:01:09.7]} 0-1

[Event "Betsys MČR v online bleskovém šachu 2021"]
[Site "Chess.com"]
[Date "2021.04.17"]
[Round "6"]
[White "JindrichT_JR_CZE"]
[Black "valid88"]
[Result "0-1"]
[WhiteElo "983"]
[BlackElo "1340"]
[TimeControl "180+1"]
[EndTime "9:54:18 PDT"]
[Termination "Uživatel valid88 zvítězil po vzdání soupeře"]

1. e4 {[%clk 0:02:48.4]} 1... c6 {[%clk 0:02:58.5]} 2. d4 {[%clk 0:02:46]} 2...
d5 {[%clk 0:02:58.8]} 3. e5 {[%clk 0:02:45]} 3... Bf5 {[%clk 0:02:58.9]} 4. Bd3
{[%clk 0:02:44.6]} 4... Bg6 {[%clk 0:02:53.2]} 5. Bxg6 {[%clk 0:02:42.2]} 5...
hxg6 {[%clk 0:02:52.3]} 6. Nf3 {[%clk 0:02:41.2]} 6... e6 {[%clk 0:02:52.5]} 7.
Be3 {[%clk 0:02:38.3]} 7... Ne7 {[%clk 0:02:50.6]} 8. O-O {[%clk 0:02:34.7]}
8... Nf5 {[%clk 0:02:48.9]} 9. Bg5 {[%clk 0:02:24.6]} 9... Be7 {[%clk
0:02:47.7]} 10. Bxe7 {[%clk 0:02:23.7]} 10... Qxe7 {[%clk 0:02:46.9]} 11. a3
{[%clk 0:02:13.2]} 11... Nh4 {[%clk 0:02:43.7]} 12. Nxh4 {[%clk 0:02:04.6]}
12... Qxh4 {[%clk 0:02:43.2]} 13. h3 {[%clk 0:02:01.9]} 13... Nd7 {[%clk
0:02:35.3]} 14. Re1 {[%clk 0:01:42.9]} 14... g5 {[%clk 0:02:25.7]} 15. Nc3
{[%clk 0:01:34.2]} 15... Rh7 {[%clk 0:02:19.6]} 16. Rc1 {[%clk 0:01:13.6]} 16...
O-O-O {[%clk 0:02:01.4]} 17. g3 {[%clk 0:00:50.3]} 17... Qxh3 {[%clk 0:01:59.7]}
0-1

[Event "Betsys MČR v online bleskovém šachu 2021"]
[Site "Chess.com"]
[Date "2021.04.17"]
[Round "6"]
[White "ikovacs"]
[Black "handlovskyjachym"]
[Result "1-0"]
[WhiteElo "1063"]
[BlackElo "1321"]
[TimeControl "180+1"]
[EndTime "9:54:20 PDT"]
[Termination "Uživatel ikovacs zvítězil – soupeř opustil hru"]

1. d4 {[%clk 0:02:59.9]} 1... d5 {[%clk 0:02:57]} 2. e3 {[%clk 0:02:59.3]} 2...
Nf6 {[%clk 0:02:55.9]} 3. Nf3 {[%clk 0:02:59.5]} 3... e6 {[%clk 0:02:56.3]} 4.
g3 {[%clk 0:02:59.9]} 4... Nbd7 {[%clk 0:02:56.2]} 5. Bg2 {[%clk 0:03:00.2]}
5... Be7 {[%clk 0:02:56.3]} 6. O-O {[%clk 0:03:00.6]} 6... O-O {[%clk
0:02:56.3]} 7. b3 {[%clk 0:03:00.9]} 7... b6 {[%clk 0:02:56.7]} 8. Nbd2 {[%clk
0:03:01.3]} 8... Bb7 {[%clk 0:02:56.8]} 9. Bb2 {[%clk 0:03:01.2]} 9... Rc8
{[%clk 0:02:56.8]} 10. c4 {[%clk 0:02:59.8]} 10... c5 {[%clk 0:02:55.6]} 11.
dxc5 {[%clk 0:02:58.3]} 11... Nxc5 {[%clk 0:02:52.8]} 12. cxd5 {[%clk
0:02:56.6]} 12... Bxd5 {[%clk 0:02:50.4]} 13. Ne5 {[%clk 0:02:46.6]} 13... Ncd7
{[%clk 0:02:42.8]} 14. Bxd5 {[%clk 0:02:41.1]} 14... Nxe5 {[%clk 0:02:35.5]} 15.
Bxe5 {[%clk 0:02:36.5]} 15... Qxd5 {[%clk 0:02:30.3]} 16. Nc4 {[%clk 0:02:26.9]}
16... Qe4 {[%clk 0:02:18.7]} 17. Bxf6 {[%clk 0:02:21.5]} 17... Bxf6 {[%clk
0:02:17.5]} 18. Nd6 {[%clk 0:02:20.9]} 18... Qc6 {[%clk 0:02:02.9]} 19. Nxc8
{[%clk 0:02:14.7]} 19... Bxa1 {[%clk 0:02:02.4]} 20. Ne7+ {[%clk 0:02:13.5]}
20... Kh8 {[%clk 0:01:50.7]} 21. Nxc6 {[%clk 0:02:12.2]} 21... Bf6 {[%clk
0:01:41.7]} 22. Qd6 {[%clk 0:02:08.5]} 22... Rc8 {[%clk 0:01:40.2]} 23. Rd1
{[%clk 0:02:01.6]} 23... g6 {[%clk 0:01:35.8]} 24. Ne5 {[%clk 0:01:49.1]} 1-0

[Event "Betsys MČR v online bleskovém šachu 2021"]
[Site "Chess.com"]
[Date "2021.04.17"]
[Round "6"]
[White "pepca"]
[Black "machonza"]
[Result "0-1"]
[WhiteElo "1529"]
[BlackElo "1972"]
[TimeControl "180+1"]
[EndTime "9:54:29 PDT"]
[Termination "Uživatel machonza zvítězil po vzdání soupeře"]

1. e4 {[%clk 0:03:00.9]} 1... c5 {[%clk 0:02:59.5]} 2. Nc3 {[%clk 0:02:58.8]}
2... Nc6 {[%clk 0:02:58.9]} 3. g3 {[%clk 0:02:56.8]} 3... g6 {[%clk 0:02:58.7]}
4. Bg2 {[%clk 0:02:56.5]} 4... Bg7 {[%clk 0:02:59.2]} 5. f4 {[%clk 0:02:56.1]}
5... d6 {[%clk 0:02:58.1]} 6. Nf3 {[%clk 0:02:55.9]} 6... e6 {[%clk 0:02:58.2]}
7. O-O {[%clk 0:02:54.9]} 7... Nge7 {[%clk 0:02:57.9]} 8. d3 {[%clk 0:02:54.7]}
8... Nd4 {[%clk 0:02:56.9]} 9. Be3 {[%clk 0:02:52.2]} 9... O-O {[%clk
0:02:55.1]} 10. Rb1 {[%clk 0:02:51.7]} 10... Rb8 {[%clk 0:02:52.4]} 11. Ne2
{[%clk 0:02:51.2]} 11... Nec6 {[%clk 0:02:47.3]} 12. c3 {[%clk 0:02:45.1]} 12...
Nxf3+ {[%clk 0:02:43.4]} 13. Rxf3 {[%clk 0:02:40.5]} 13... Qa5 {[%clk
0:02:42.7]} 14. a3 {[%clk 0:02:35.8]} 14... d5 {[%clk 0:02:36.5]} 15. exd5
{[%clk 0:02:30.6]} 15... exd5 {[%clk 0:02:35.5]} 16. Rf1 {[%clk 0:02:29.8]}
16... Re8 {[%clk 0:02:20.7]} 17. Bf2 {[%clk 0:02:25.7]} 17... Bg4 {[%clk
0:02:16.6]} 18. Re1 {[%clk 0:02:21.8]} 18... d4 {[%clk 0:02:14.4]} 19. cxd4
{[%clk 0:02:12.6]} 19... Nxd4 {[%clk 0:02:12.2]} 20. Bxd4 {[%clk 0:02:02.4]}
20... Bxd4+ {[%clk 0:02:09.6]} 21. Kh1 {[%clk 0:02:01.2]} 21... Bf2 {[%clk
0:02:08.9]} 22. b4 {[%clk 0:01:47.3]} 22... cxb4 {[%clk 0:02:05.5]} 23. axb4
{[%clk 0:01:44.8]} 23... Qh5 {[%clk 0:02:05.1]} 24. Qd2 {[%clk 0:01:39.7]} 24...
Bxe1 {[%clk 0:02:03]} 25. Rxe1 {[%clk 0:01:39]} 25... Rxe2 {[%clk 0:02:02.4]}
26. Rxe2 {[%clk 0:01:38.2]} 26... Bxe2 {[%clk 0:02:01.5]} 27. h3 {[%clk
0:01:32.2]} 27... Bf3 {[%clk 0:02:00.5]} 28. g4 {[%clk 0:01:25.9]} 28... Qxh3+
{[%clk 0:01:59.5]} 29. Kg1 {[%clk 0:01:23.6]} 29... Qxg4 {[%clk 0:01:59.3]} 30.
Kf1 {[%clk 0:01:21.6]} 30... Bxg2+ {[%clk 0:01:56.2]} 31. Qxg2 {[%clk
0:01:21.1]} 31... Qxf4+ {[%clk 0:01:55.5]} 32. Qf2 {[%clk 0:01:20.7]} 32...
Qxf2+ {[%clk 0:01:54.6]} 33. Kxf2 {[%clk 0:01:20.5]} 0-1

[Event "Betsys MČR v online bleskovém šachu 2021"]
[Site "Chess.com"]
[Date "2021.04.17"]
[Round "6"]
[White "dino5517"]
[Black "Molefancier"]
[Result "1-0"]
[WhiteElo "1391"]
[BlackElo "1064"]
[TimeControl "180+1"]
[EndTime "9:54:39 PDT"]
[Termination "Uživatel dino5517 zvítězil po vzdání soupeře"]

1. e4 {[%clk 0:03:00.9]} 1... c6 {[%clk 0:02:54.1]} 2. d4 {[%clk 0:02:58.4]}
2... d5 {[%clk 0:02:53]} 3. e5 {[%clk 0:02:58.2]} 3... e6 {[%clk 0:02:47.9]} 4.
c4 {[%clk 0:02:58.5]} 4... c5 {[%clk 0:02:38.8]} 5. Nf3 {[%clk 0:02:52]} 5...
cxd4 {[%clk 0:02:36.4]} 6. Nxd4 {[%clk 0:02:50.2]} 6... Bc5 {[%clk 0:02:32.5]}
7. Be3 {[%clk 0:02:46.9]} 7... b6 {[%clk 0:02:27.4]} 8. Nc3 {[%clk 0:02:35.4]}
8... Nc6 {[%clk 0:02:26.4]} 9. Nxc6 {[%clk 0:02:25]} 9... Qc7 {[%clk 0:02:16.6]}
10. Nd4 {[%clk 0:02:23.3]} 10... Qxe5 {[%clk 0:02:05.7]} 11. cxd5 {[%clk
0:02:17.2]} 11... Bxd4 {[%clk 0:02:00.3]} 12. Qxd4 {[%clk 0:02:12.9]} 12... Qd6
{[%clk 0:01:55]} 13. Qxg7 {[%clk 0:02:06]} 13... Qb4 {[%clk 0:01:38.6]} 14. Qxh8
{[%clk 0:02:01.8]} 14... Kf8 {[%clk 0:01:37.9]} 15. Bh6+ {[%clk 0:01:58.3]}
15... Ke7 {[%clk 0:01:35.8]} 16. Qxg8 {[%clk 0:01:56.6]} 16... Qxb2 {[%clk
0:01:33.7]} 17. Bg5+ {[%clk 0:01:43.4]} 17... Kd6 {[%clk 0:01:29.5]} 18. Qd8+
{[%clk 0:01:33.7]} 18... Ke5 {[%clk 0:01:25.6]} 19. Qf6+ {[%clk 0:01:30]} 19...
Kd6 {[%clk 0:01:24.7]} 20. Ne4+ {[%clk 0:01:26.3]} 20... Kc7 {[%clk 0:01:17]}
21. Qxb2 {[%clk 0:01:24.7]} 1-0

[Event "Betsys MČR v online bleskovém šachu 2021"]
[Site "Chess.com"]
[Date "2021.04.17"]
[Round "6"]
[White "patrikvagner"]
[Black "Simago"]
[Result "0-1"]
[WhiteElo "1783"]
[BlackElo "2096"]
[TimeControl "180+1"]
[EndTime "9:54:48 PDT"]
[Termination "Uživatel Simago zvítězil matem"]

1. d4 {[%clk 0:02:29.7]} 1... Nf6 {[%clk 0:02:57.2]} 2. c4 {[%clk 0:02:29]} 2...
g6 {[%clk 0:02:57.2]} 3. Nc3 {[%clk 0:02:28.9]} 3... Bg7 {[%clk 0:02:57.5]} 4.
e4 {[%clk 0:02:29]} 4... d6 {[%clk 0:02:58.1]} 5. Nf3 {[%clk 0:02:29.1]} 5...
O-O {[%clk 0:02:57.6]} 6. Be2 {[%clk 0:02:29.1]} 6... Nbd7 {[%clk 0:02:57.4]} 7.
O-O {[%clk 0:02:28.7]} 7... e5 {[%clk 0:02:57.4]} 8. dxe5 {[%clk 0:02:28.1]}
8... dxe5 {[%clk 0:02:57.1]} 9. Bg5 {[%clk 0:02:26.2]} 9... c6 {[%clk 0:02:57]}
10. Qc2 {[%clk 0:02:25.2]} 10... Qc7 {[%clk 0:02:52.3]} 11. Rfd1 {[%clk
0:02:24.6]} 11... h6 {[%clk 0:02:51.2]} 12. Be3 {[%clk 0:02:24.5]} 12... Ng4
{[%clk 0:02:47.4]} 13. Qd2 {[%clk 0:02:13.1]} 13... Nxe3 {[%clk 0:02:46.4]} 14.
Qxe3 {[%clk 0:02:13.1]} 14... a5 {[%clk 0:02:45.2]} 15. a3 {[%clk 0:02:12.3]}
15... Re8 {[%clk 0:02:40.9]} 16. Rd2 {[%clk 0:02:10.5]} 16... Nf8 {[%clk
0:02:40.1]} 17. Rad1 {[%clk 0:02:09.9]} 17... Ne6 {[%clk 0:02:38.8]} 18. g3
{[%clk 0:02:02.6]} 18... Nd4 {[%clk 0:02:35]} 19. Rc2 {[%clk 0:01:48.9]} 19...
Nxc2 {[%clk 0:02:28.6]} 20. Qd2 {[%clk 0:01:43.9]} 20... Nd4 {[%clk 0:02:27.8]}
21. Nxd4 {[%clk 0:01:43.2]} 21... exd4 {[%clk 0:02:27.8]} 22. Na4 {[%clk
0:01:43.4]} 22... Be6 {[%clk 0:02:23.9]} 23. Bd3 {[%clk 0:01:42.3]} 23... c5
{[%clk 0:02:19.1]} 24. b3 {[%clk 0:01:28.2]} 24... b6 {[%clk 0:02:16.8]} 25. Nb2
{[%clk 0:01:28]} 25... Qd7 {[%clk 0:02:13.9]} 26. f3 {[%clk 0:01:28.1]} 26... f5
{[%clk 0:02:13.6]} 27. Bc2 {[%clk 0:01:27.3]} 27... fxe4 {[%clk 0:02:13.4]} 28.
Bxe4 {[%clk 0:01:26.8]} 28... Bf5 {[%clk 0:02:11.8]} 29. Bxf5 {[%clk 0:01:25.2]}
29... Qxf5 {[%clk 0:02:11]} 30. Nd3 {[%clk 0:01:25.3]} 30... Re3 {[%clk
0:02:09.3]} 31. Nf4 {[%clk 0:01:24]} 31... Rae8 {[%clk 0:02:05]} 32. Kf2 {[%clk
0:01:20.1]} 32... g5 {[%clk 0:02:01]} 33. Nd3 {[%clk 0:01:18.4]} 33... Qxf3+
{[%clk 0:01:54.9]} 34. Kg1 {[%clk 0:01:18.2]} 34... Re2 {[%clk 0:01:52.2]} 35.
Qc1 {[%clk 0:01:15.9]} 35... Qg2# {[%clk 0:01:46.5]} 0-1

[Event "Betsys MČR v online bleskovém šachu 2021"]
[Site "Chess.com"]
[Date "2021.04.17"]
[Round "6"]
[White "8_olda_8"]
[Black "Vojta0007"]
[Result "1-0"]
[WhiteElo "1797"]
[BlackElo "1481"]
[TimeControl "180+1"]
[EndTime "9:54:48 PDT"]
[Termination "Uživatel 8_olda_8 zvítězil matem"]

1. d4 {[%clk 0:02:17.8]} 1... d5 {[%clk 0:02:58.8]} 2. c4 {[%clk 0:02:17.9]}
2... c6 {[%clk 0:02:58.2]} 3. Nc3 {[%clk 0:02:18.6]} 3... e6 {[%clk 0:02:57.7]}
4. Nf3 {[%clk 0:02:19.4]} 4... Nf6 {[%clk 0:02:57.1]} 5. Bf4 {[%clk 0:02:19.5]}
5... Be7 {[%clk 0:02:56.1]} 6. e3 {[%clk 0:02:20.1]} 6... Nbd7 {[%clk
0:02:55.3]} 7. h3 {[%clk 0:02:20.1]} 7... b6 {[%clk 0:02:54.4]} 8. Rc1 {[%clk
0:02:20]} 8... Bb7 {[%clk 0:02:53.6]} 9. cxd5 {[%clk 0:02:20.3]} 9... cxd5
{[%clk 0:02:52.5]} 10. Bd3 {[%clk 0:02:20.2]} 10... O-O {[%clk 0:02:51.8]} 11.
O-O {[%clk 0:02:20.3]} 11... Rc8 {[%clk 0:02:47.7]} 12. Qe2 {[%clk 0:02:20]}
12... Re8 {[%clk 0:02:43.2]} 13. Nb5 {[%clk 0:02:19.8]} 13... a6 {[%clk
0:02:37.7]} 14. Nd6 {[%clk 0:02:19]} 14... Bxd6 {[%clk 0:02:35.1]} 15. Bxd6
{[%clk 0:02:19.9]} 15... b5 {[%clk 0:02:33.7]} 16. a4 {[%clk 0:02:16.2]} 16...
bxa4 {[%clk 0:02:29.6]} 17. Bxa6 {[%clk 0:02:09.9]} 17... Rxc1 {[%clk 0:02:18]}
18. Rxc1 {[%clk 0:02:09.3]} 18... Qb6 {[%clk 0:02:09.9]} 19. Bxb7 {[%clk
0:02:07.8]} 19... Qxb7 {[%clk 0:02:05.7]} 20. Ba3 {[%clk 0:01:52.9]} 20... Qb3
{[%clk 0:01:54.9]} 21. Rc3 {[%clk 0:01:51.5]} 21... Qb7 {[%clk 0:01:49.2]} 22.
Qc2 {[%clk 0:01:51.6]} 22... Qa6 {[%clk 0:01:39.1]} 23. Rc7 {[%clk 0:01:45.3]}
23... h6 {[%clk 0:01:24.2]} 24. g4 {[%clk 0:01:43.6]} 24... Rd8 {[%clk 0:01:20]}
25. g5 {[%clk 0:01:38.1]} 25... hxg5 {[%clk 0:01:14.9]} 26. Nxg5 {[%clk
0:01:37.8]} 26... Ne8 {[%clk 0:01:12.5]} 27. Qh7# {[%clk 0:01:30.2]} 1-0